bitfinex/quotes_ETHUSD_20250110
["timestamp","ask_amount","ask_price","bid_price","bid_amount"]
[1736534632254,3.0,3289.6,3289.1,0.616336]
[1736534632461,3.0,3289.4,3289.1,0.616336]
[1736534633579,3.03983,3289.7,3289.1,0.616336]
[1736534633700,3.0,3289.9,3289.1,0.616336]
[1736534633906,6.03967,3289.9,3289.1,0.616336]
[1736534634414,2.82089797,3290.0,3289.1,0.616336]
[1736534634415,3.03952,3290.0,3289.2,0.7723]
[1736534634659,3.03961,3289.9,3289.2,0.7723]
[1736534634850,3.0,3289.8,3289.2,0.7723]
[1736534635607,3.03971,3289.8,3289.2,0.7723]
[1736534636108,3.0,3289.9,3289.2,0.7723]
[1736534636321,3.0,3289.9,3289.2,1.2152066]
[1736534636508,3.7568,3290.2,3289.2,1.2152066]
[1736534636733,3.03962,3289.9,3289.2,0.7723]
[1736534637247,3.04696,3290.1,3289.2,0.7723]
[1736534637409,2.82089797,3290.3,3289.3,0.03039897]
[1736534637606,2.83589797,3290.3,3289.2,0.7723]
[1736534637806,3.03972,3289.8,3289.2,0.7723]
[1736534638441,3.0,3289.9,3289.2,0.7723]
[1736534638853,3.03962,3289.9,3289.2,1.2152046]
[1736534639229,3.53628275,3290.2,3289.2,1.2152046]
[1736534639553,3.03958,3290.0,3289.2,0.7723]
[1736534639757,6.57564275,3290.2,3289.2,3.81255]
[1736534640059,6.57564275,3290.2,3289.6,0.60131243]
[1736534640387,6.03936,3290.2,3289.6,0.60131243]
[1736534640685,3.03933,3290.2,3289.6,0.60131243]
[1736534641116,5.82089797,3290.3,3289.6,0.60131243]
[1736534641483,3.03959,3290.0,3289.6,0.60131243]
[1736534641780,3.03963,3289.9,3289.6,0.60131243]
[1736534641919,3.03979,3289.7,3289.4,0.7537]
[1736534642120,3.0,3289.9,3289.4,0.7537]
[1736534642421,3.03987,3289.7,3289.4,1.35008164]
[1736534644184,6.03964,3289.9,3289.4,1.35008164]
[1736534644958,3.03981,3289.7,3289.4,1.35008164]
[1736534645281,3.0,3289.9,3289.2,0.59960796]
[1736534645282,0.0075,3289.8,3289.2,0.59960796]
[1736534645488,3.03996,3289.6,3289.2,0.59960796]
[1736534645778,5.12810597,3290.2,3289.3,0.809]
[1736534645987,1.141933,3290.2,3289.3,0.809]
[1736534646125,3.0,3289.9,3289.5,0.7887]
[1736534646586,5.38,3290.4,3289.5,0.7887]
[1736534646810,5.38,3290.4,3289.2,0.59960796]
[1736534646811,5.38,3290.4,3289.7,0.7851]
[1736534647010,5.38,3290.4,3289.8,0.7851]
[1736534647295,3.03897,3290.6,3290.0,0.7851]
[1736534647661,3.0,3290.5,3290.0,0.81549123]
[1736534647971,5.38,3291.0,3290.1,3.82006]
[1736534648173,3.03891,3290.7,3290.3,0.61058014]
[1736534649095,6.0387,3290.9,3290.3,0.61058014]
[1736534650787,3.0,3290.7,3290.3,0.61058014]
[1736534651192,3.0389,3290.7,3290.3,0.61058014]
[1736534651389,3.0,3290.9,3290.3,0.61058014]
[1736534651693,5.38,3291.0,3290.4,0.78868979]
[1736534651888,5.38,3291.0,3290.5,0.03038629]
[1736534652210,5.38,3291.0,3290.4,0.7583]
[1736534654320,3.03822,3291.4,3290.6,0.8025]
[1736534654522,3.03807,3291.6,3290.7,0.03038403]
[1736534654699,6.03814,3291.5,3290.8,0.8025]
[1736534655034,6.03833,3291.3,3290.8,0.8025]
[1736534655320,6.03833,3291.3,3290.9,0.59697676]
[1736534655520,3.03856,3291.1,3290.8,0.8025]
[1736534656222,3.03868,3290.9,3290.8,0.8025]
[1736534656429,3.03868,3290.9,3290.7,0.60969523]
[1736534656630,3.03902,3290.6,3290.5,0.7762]
[1736534657489,3.03902,3290.6,3290.5,1.38918134]
[1736534657706,3.03902,3290.6,3289.6,0.0075]
[1736534657707,3.03927,3290.3,3290.2,0.7762]
[1736534658107,3.03951,3290.0,3289.9,0.264]
[1736534658308,3.03951,3290.0,3289.9,0.87302584]
[1736534662843,6.03951,3290.0,3289.9,0.87302584]
[1736534663059,3.03979,3289.7,3289.6,0.7762]
[1736534663929,3.04007,3289.4,3289.3,0.7608]
[1736534664128,3.0399,3289.6,3289.3,0.7608]
[1736534664334,3.03996,3289.6,3289.3,0.7608]
[1736534665448,3.03996,3289.6,3289.3,1.35474429]
[1736534666269,0.7596,3290.2,3289.3,1.35474429]
[1736534666438,3.0398,3289.7,3289.3,1.35474429]
[1736534667474,3.03967,3289.9,3289.3,1.35474429]
[1736534667775,3.04006,3289.4,3289.3,1.35474429]
[1736534667973,3.04006,3289.4,3289.3,0.59394429]
[1736534668134,3.04006,3289.4,3288.5,0.264]
[1736534668135,3.04034,3289.1,3288.5,0.264]
[1736534668341,3.04034,3289.1,3288.6,0.8231]
[1736534668974,3.04071,3288.7,3288.6,0.8231]
[1736534669277,3.04081,3288.6,3288.3,0.8231]
[1736534669446,3.0409,3288.5,3288.3,0.8231]
[1736534669773,3.04131,3288.1,3288.0,0.7839]
[1736534670282,3.04155,3287.8,3287.5,0.7839]
[1736534671159,3.04139,3288.0,3287.5,0.7839]
[1736534671360,3.04139,3288.0,3287.7,0.60988861]
[1736534671566,8.86198797,3288.3,3287.7,0.60988861]
[1736534671567,3.04145,3287.9,3287.7,0.60988861]
[1736534673353,3.04154,3287.8,3287.7,0.60988861]
[1736534673560,3.04138,3288.0,3287.7,0.60988861]
[1736534674077,3.04092,3288.5,3287.8,0.81411468]
[1736534674666,3.04092,3288.5,3287.8,0.7837]
[1736534674842,3.04092,3288.5,3287.9,0.03040966]
[1736534675039,3.04092,3288.5,3287.8,0.7837]
[1736534675277,3.04074,3288.7,3287.9,0.03040939]
[1736534675483,5.38,3288.9,3288.0,0.8156]
[1736534675782,3.04056,3288.9,3288.4,0.59489403]
[1736534675942,3.04056,3288.9,3288.5,0.7614]
[1736534677290,3.04066,3288.8,3288.5,0.7614]
[1736534678282,3.04016,3289.3,3288.5,0.7614]
[1736534679186,3.04052,3289.0,3288.5,0.79180556]
[1736534679549,3.04052,3289.0,3288.5,0.7614]
[1736534680073,3.04055,3288.9,3288.5,0.7614]
[1736534680288,3.04064,3288.8,3288.5,0.7614]
[1736534680502,3.0405,3289.0,3288.5,0.7614]
[1736534682990,3.04034,3289.1,3288.5,0.7614]
[1736534683198,3.0,3289.4,3288.5,0.7614]
[1736534683199,3.04011,3289.4,3288.7,0.7895]
[1736534683501,5.38,3289.5,3289.0,0.60503279]
[1736534683678,3.0,3289.5,3289.1,0.7895]
[1736534683869,3.04006,3289.4,3289.1,0.7895]
[1736534684062,3.0,3289.5,3289.1,0.7895]
[1736534684268,3.03999,3289.5,3289.1,0.7895]
[1736534684672,5.38,3289.6,3289.1,0.7895]
[1736534684861,8.41988,3289.6,3289.1,0.7895]
[1736534686475,5.38,3289.6,3289.1,0.7895]
[1736534687205,5.38,3289.6,3289.1,1.0525]
[1736534687412,0.8123,3290.4,3289.3,0.7876]
[1736534687613,3.03939,3290.2,3289.4,0.7801]
[1736534688112,3.03945,3290.1,3289.4,0.7801]
[1736534688417,3.03909,3290.5,3289.4,0.7801]
[1736534688418,3.0,3290.3,3289.4,0.7801]
[1736534688710,3.03959,3290.0,3289.5,0.61624905]
[1736534689573,3.03933,3290.2,3289.5,0.61624905]
[1736534689805,3.03949,3290.1,3289.6,0.799]
[1736534690278,3.03958,3290.0,3289.6,0.799]
[1736534691411,3.0,3290.3,3289.6,0.799]
[1736534691632,3.0396,3289.9,3289.6,0.799]
[1736534692634,3.03942,3290.1,3289.6,0.799]
[1736534693298,3.03958,3290.0,3289.6,0.799]
[1736534693527,3.03979,3289.7,3289.6,0.799]
[1736534695191,3.03979,3289.7,3289.5,0.61624905]
[1736534695392,3.03979,3289.7,3288.8,0.263]
[1736534695393,3.04005,3289.5,3288.8,0.263]
[1736534695619,3.04008,3289.4,3288.8,0.263]
[1736534696909,3.04008,3289.4,3289.3,0.62180044]
[1736534698131,6.03962,3289.9,3289.3,0.62180044]
[1736534698331,3.03996,3289.6,3289.3,0.62180044]
[1736534699454,3.03996,3289.6,3289.3,1.37190044]
[1736534699746,3.59709797,3290.0,3289.3,1.37190044]
[1736534699747,3.03973,3289.8,3289.3,1.37190044]
[1736534699951,3.0,3289.7,3289.3,1.37190044]
[1736534700953,5.38,3290.2,3289.3,1.37190044]
[1736534701120,3.03956,3290.0,3289.3,1.37190044]
[1736534701315,3.0397,3289.8,3289.3,1.37190044]
[1736534701653,0.30397,3289.8,3289.3,1.37190044]
[1736534701821,0.8332,3289.7,3289.3,0.62180044]
[1736534702022,0.8332,3289.7,3288.6,0.802]
[1736534702023,3.04034,3289.1,3288.6,0.802]
[1736534702242,3.04071,3288.7,3288.6,0.802]
[1736534702554,3.04083,3288.6,3288.1,0.802]
[1736534702768,0.8189,3289.4,3288.2,0.03040752]
[1736534702974,0.8189,3289.7,3288.4,0.0075]
[1736534703127,3.04035,3289.1,3288.5,1.42773747]
[1736534703463,3.03997,3289.5,3288.5,1.42773747]
[1736534703464,0.8189,3289.7,3288.6,0.03040336]
[1736534703667,3.03997,3289.6,3288.7,0.7947]
[1736534703983,3.03997,3289.6,3288.9,0.7947]
[1736534704152,3.0,3289.9,3289.0,0.03039973]
[1736534704347,3.03982,3289.7,3289.1,0.8301]
[1736534704755,3.03982,3289.7,3289.2,0.03039791]
[1736534705275,3.03982,3289.7,3289.1,0.8301]
[1736534705479,3.03987,3289.7,3289.1,0.8301]
[1736534705644,3.03987,3289.7,3289.5,0.60231025]
[1736534709454,5.38,3290.0,3289.5,0.60231025]
[1736534709950,3.03971,3289.8,3289.5,0.60231025]
[1736534710212,3.03932,3290.2,3289.6,0.8083]
[1736534710346,3.03905,3290.5,3289.6,0.8083]
[1736534710558,3.03974,3289.8,3289.6,0.8083]
[1736534710914,3.0,3289.9,3289.5,0.60231025]
[1736534711065,3.03988,3289.6,3289.5,0.60231025]
[1736534711951,3.0,3289.9,3289.5,0.60231025]
[1736534712390,3.03969,3289.8,3289.5,0.60231025]
[1736534712587,3.0398,3289.7,3289.5,0.60231025]
[1736534712887,3.03965,3289.9,3289.5,0.60231025]
[1736534715588,3.0,3290.1,3289.5,0.60231025]
[1736534715589,3.03946,3290.1,3289.5,0.60231025]
[1736534715767,3.03927,3290.3,3289.6,0.7584]
[1736534716190,2.97192652,3290.8,3289.7,0.03789343]
[1736534716191,5.38,3290.4,3289.7,0.03789343]
[1736534716392,5.38,3290.4,3289.8,0.30777634]
[1736534716556,5.38,3290.4,3290.0,0.7643]
[1736534717063,5.38,3290.4,3290.2,0.60615098]
[1736534718080,8.41871,3290.9,3290.2,0.60615098]
[1736534718283,3.03854,3291.1,3290.4,0.7654]
[1736534718515,3.03854,3291.1,3290.5,0.03038607]
[1736534719101,3.03854,3291.1,3290.4,0.7654]
[1736534719298,3.03854,3291.1,3290.5,0.0303861]
[1736534719498,3.03854,3291.1,3290.4,0.7654]
[1736534719499,5.38,3291.2,3290.4,0.7654]
[1736534719700,6.03859,3291.0,3290.4,0.7654]
[1736534720532,3.0,3290.9,3290.4,0.7654]
[1736534720835,3.03892,3290.7,3290.4,0.7654]
[1736534721635,3.03892,3290.7,3290.5,0.60462921]
[1736534722202,3.03872,3290.9,3290.5,0.60462921]
[1736534722406,3.0,3291.1,3290.5,0.60462921]
[1736534722709,5.38,3291.2,3290.7,0.8204]
[1736534722925,5.38,3291.7,3290.7,0.8204]
[1736534723123,3.0387,3290.9,3290.7,0.8204]
[1736534723437,3.03877,3290.8,3290.5,0.60462921]
[1736534723603,3.03854,3291.1,3290.5,0.60462921]
[1736534723783,0.8147,3291.3,3290.5,0.60462921]
[1736534723986,3.8147,3291.3,3290.5,0.60462921]
[1736534724184,3.9635598,3291.2,3290.5,0.60462921]
[1736534724390,3.03908,3290.5,3290.1,0.8204]
[1736534724742,3.03921,3290.4,3290.1,0.8204]
[1736534725037,3.03921,3290.4,3290.3,0.60525114]
[1736534726986,8.41921,3290.4,3290.3,0.60525114]
[1736534728724,5.38,3290.4,3290.3,0.60525114]
[1736534729298,8.41914,3290.4,3290.3,0.60525114]
[1736534730141,5.38,3290.0,3289.7,0.6087803]
[1736534730370,3.03969,3289.8,3289.7,0.6087803]
[1736534730508,3.03992,3289.6,3289.1,0.793]
[1736534730706,3.03992,3289.6,3289.5,0.62107152]
[1736534731401,3.03992,3289.6,3289.1,0.793]
[1736534731402,8.41992,3289.6,3289.1,0.793]
[1736534731607,8.41992,3289.6,3288.6,1.056]
[1736534731804,3.04043,3289.1,3288.6,0.793]
[1736534732347,3.04043,3289.1,3289.0,0.62112481]
[1736534733537,3.0,3289.4,3289.0,0.62112481]
[1736534733837,3.04026,3289.2,3289.0,0.62112481]
[1736534734840,6.03997,3289.5,3289.1,0.8025]
[1736534735144,5.38,3289.6,3289.1,0.8025]
[1736534735343,5.38,3289.6,3289.1,0.83290128]
[1736534735653,5.38,3289.6,3289.1,0.8025]
[1736534736950,5.38,3289.9,3289.3,0.8025]
[1736534737159,8.41944,3290.1,3289.4,0.38731401]
[1736534737382,8.41944,3290.1,3289.3,0.8025]
[1736534738907,5.38,3290.1,3289.3,0.8025]
[1736534739245,5.38,3290.1,3289.2,3.04017]
[1736534739246,8.41937,3290.2,3290.0,0.62015031]
[1736534740042,3.03918,3290.4,3290.1,0.8025]
[1736534740276,5.38,3290.6,3290.1,0.83289143]
[1736534740484,3.03906,3290.5,3290.1,0.8025]
[1736534741828,5.38,3290.6,3290.1,0.8025]
[1736534742042,3.03905,3290.5,3290.1,0.8025]
[1736534742924,3.03914,3290.4,3290.1,0.8025]
[1736534744972,8.41899,3290.6,3290.1,0.8025]
[1736534748870,5.38,3290.9,3290.1,0.8025]
[1736534749041,5.38,3291.1,3290.1,0.8025]
[1736534749238,8.41853,3291.1,3290.3,0.7551]
[1736534749438,5.38,3291.1,3290.5,0.7551]
[1736534750152,3.0,3291.5,3290.6,0.03038486]
[1736534750487,8.41808,3291.6,3290.8,0.7512]
[1736534750630,5.38,3291.6,3290.8,0.7512]
[1736534750950,5.38,3291.6,3290.4,0.65197888]
[1736534750951,5.38,3291.6,3290.6,0.0075]
[1736534751131,8.41804,3291.6,3290.8,0.0075]
[1736534751326,8.41804,3291.6,3290.9,0.304628]
[1736534752264,8.41804,3291.6,3291.4,0.60432871]
[1736534753066,3.03812,3291.5,3291.4,0.60432871]
[1736534754795,5.38,3291.8,3291.4,0.60432871]
[1736534755144,3.03733,3292.4,3291.5,1.11347844]
[1736534755367,3.03739,3292.3,3291.6,0.17178072]
[1736534755545,8.41731,3292.4,3291.8,0.8195]
[1736534756177,2.82089797,3292.2,3291.5,1.0815]
[1736534756393,5.85841797,3292.2,3291.5,1.0815]
[1736534756601,0.015,3292.1,3291.5,0.262]
[1736534756889,3.03803,3291.6,3291.4,0.60432871]
[1736534757050,3.03812,3291.5,3291.4,0.60432871]
[1736534757743,5.38,3291.7,3291.4,0.60432871]
[1736534757951,5.38,3291.7,3291.5,0.8195]
[1736534759311,6.03765,3292.1,3291.5,0.8195]
[1736534759312,5.38,3292.0,3291.5,0.8195]
[1736534759522,5.38,3292.0,3291.5,0.84987754]
[1736534760210,5.38,3292.0,3291.5,0.8195]
[1736534760444,5.38,3292.0,3291.6,0.03037612]
[1736534760600,5.38,3292.0,3291.7,0.7559]
[1736534761772,5.38,3292.0,3291.8,0.0303758]
[1736534762015,5.38,3292.0,3291.9,0.766]
[1736534762188,5.38,3292.0,3291.9,1.38275482]
[1736534762636,3.03766,3292.0,3291.9,0.61675482]
[1736534762777,3.58766,3292.0,3291.9,0.61675482]
[1736534762980,0.8175,3292.0,3291.4,0.813]
[1736534763222,5.38,3292.1,3291.4,0.813]
[1736534763589,0.55,3292.0,3291.4,0.813]
[1736534763787,1.3675,3291.8,3291.1,0.813]
[1736534764222,3.0384,3291.2,3290.4,0.813]
[1736534764399,3.03868,3291.0,3290.4,0.813]
[1736534764600,3.0385,3291.1,3290.4,0.813]
[1736534764796,0.55,3291.2,3290.9,0.61584228]
[1736534765018,8.96859,3291.0,3290.9,0.61584228]
[1736534765623,5.38,3291.0,3290.9,0.61584228]
[1736534766417,5.38,3291.0,3290.9,1.39344228]
[1736534767231,5.38,3291.7,3291.0,0.0075]
[1736534767391,5.38,3291.8,3291.1,0.262]
[1736534767586,5.38,3291.8,3291.2,0.330807]
[1736534767798,8.41762,3292.1,3291.3,0.84517814]
[1736534768133,3.03771,3292.0,3291.3,0.8148]
[1736534768592,3.03783,3291.9,3291.3,0.8148]
[1736534768787,3.03812,3291.6,3291.3,0.8148]
[1736534769218,3.03812,3291.6,3291.5,0.59892845]
[1736534770235,3.03783,3291.9,3291.5,0.59892845]
[1736534770546,3.03789,3291.8,3291.5,0.59892845]
[1736534770839,3.03796,3291.7,3291.5,0.59892845]
[1736534770995,3.03796,3291.7,3291.0,0.262]
[1736534770996,4.38163,3291.6,3291.0,0.262]
[1736534771195,3.0383,3291.4,3291.0,0.262]
[1736534771395,5.38,3291.4,3291.3,0.62308517]
[1736534771598,8.96822,3291.4,3291.3,0.62308517]
[1736534771792,8.96822,3291.4,3289.7,3.03976]
[1736534771793,0.55,3291.1,3290.3,0.7997]
[1736534772019,0.55,3291.1,3290.3,1.0617]
[1736534772209,3.03853,3291.1,3290.4,0.03038783]
[1736534772411,5.38,3291.2,3290.5,0.7921]
[1736534772819,3.03861,3291.0,3290.5,0.7921]
[1736534773034,5.38,3291.0,3290.9,0.61030706]
[1736534773199,9.56159,3291.0,3290.9,0.61030706]
[1736534775769,9.56159,3291.0,3290.5,0.7921]
[1736534775958,3.03887,3290.7,3290.2,1.0455]
[1736534776284,3.03887,3290.7,3290.2,0.7835]
[1736534777281,5.93,3291.0,3290.2,0.7835]
[1736534777484,3.03871,3290.9,3290.6,0.6005032]
[1736534777788,5.38,3291.0,3290.6,0.6005032]
[1736534778292,5.38,3291.0,3290.7,0.7579]
[1736534778930,5.38,3291.0,3290.7,0.78828518]
[1736534779068,5.38,3291.0,3290.7,0.7579]
[1736534779592,3.03877,3290.8,3290.7,0.7579]
[1736534779930,5.38,3291.0,3290.6,0.6005032]
[1736534780573,8.41847,3291.2,3290.6,0.6005032]
[1736534781705,3.03868,3291.0,3290.6,0.6005032]
[1736534782107,8.41848,3291.2,3290.6,0.6005032]
[1736534782282,3.03859,3291.0,3290.6,0.6005032]
[1736534783187,0.55,3291.1,3290.6,0.6005032]
[1736534783390,3.03886,3290.7,3290.6,0.6005032]
[1736534783586,3.03876,3290.9,3290.6,0.6005032]
[1736534783889,3.03886,3290.7,3290.6,0.6005032]
[1736534785909,0.55,3290.9,3290.6,0.6005032]
[1736534786209,3.58872,3290.9,3290.6,0.6005032]
[1736534786714,0.55,3290.7,3290.6,0.6005032]
[1736534786912,3.58886,3290.7,3290.6,0.6005032]
[1736534787317,0.55,3290.5,3289.8,0.262]
[1736534787518,3.0393,3290.3,3289.8,0.262]
[1736534787701,0.55,3290.3,3289.5,0.8282]
[1736534787908,3.03948,3290.1,3289.6,0.262]
[1736534788316,5.93,3290.3,3290.0,0.59355812]
[1736534788517,5.93,3290.3,3289.6,0.262]
[1736534788518,3.03982,3289.7,3289.2,2.74154526]
[1736534788703,0.55,3289.9,3289.2,2.74154526]
[1736534789092,8.38,3290.0,3289.2,2.74154526]
[1736534789093,5.38,3290.0,3289.3,0.03039944]
[1736534789345,5.38,3290.0,3289.7,0.7894]
[1736534789615,4.12581061,3290.0,3289.7,0.81979477]
[1736534789802,7.16452061,3290.9,3290.1,0.7894]
[1736534790002,4.12581061,3290.9,3290.2,3.33170845]
[1736534790191,4.12581061,3290.9,3290.4,0.7894]
[1736534790615,3.03845,3291.2,3290.5,0.03038845]
[1736534790918,4.12581061,3291.6,3290.8,0.59355812]
[1736534791120,4.12581061,3291.6,3290.9,0.7513]
[1736534791121,7.16386061,3291.6,3290.9,0.7513]
[1736534791412,3.03812,3291.5,3290.9,0.7513]
[1736534791817,4.12581061,3291.6,3290.9,0.7513]
[1736534792204,4.12581061,3291.6,3291.0,0.46874343]
[1736534793032,6.94670858,3292.3,3291.1,0.0075]
[1736534793267,7.16320061,3292.3,3291.3,0.0075]
[1736534793473,3.03748,3292.2,3291.4,0.7942]
[1736534795231,4.12581061,3292.3,3292.1,0.60631685]
[1736534796447,4.12581061,3292.8,3292.1,1.38901685]
[1736534796651,4.12581061,3292.8,3292.2,0.03037086]
[1736534796875,0.8175,3293.3,3292.2,0.03037086]
[1736534797008,3.03678,3293.0,3292.2,0.03037086]
[1736534797352,3.03665,3293.1,3292.3,0.261]
[1736534797558,3.03665,3293.1,3292.4,0.03036783]
[1736534797763,2.82089797,3293.5,3292.5,0.8271]
[1736534797911,3.03675,3293.0,3292.5,0.8271]
[1736534798231,2.82089797,3293.2,3292.3,0.261]
[1736534798232,3.03696,3292.8,3292.3,0.261]
[1736534798924,3.03704,3292.7,3292.3,0.261]
[1736534799434,3.03704,3292.7,3292.5,0.61245962]
[1736534800019,3.03704,3292.7,3292.2,0.8271]
[1736534800020,0.55,3292.6,3292.2,0.8271]
[1736534800221,2.82089797,3292.3,3291.8,0.7832]
[1736534800420,2.82089797,3292.3,3291.5,0.60412725]
[1736534800421,0.55,3291.9,3291.5,0.60412725]
[1736534800621,3.03803,3291.6,3291.5,0.60412725]
[1736534801770,3.03803,3291.6,3290.6,0.8122]
[1736534801771,3.03854,3291.1,3290.6,0.8122]
[1736534801973,0.55,3291.5,3290.6,0.8122]
[1736534802546,0.55,3291.5,3291.0,0.60120788]
[1736534803144,3.03841,3291.2,3291.0,0.60120788]
[1736534803527,3.03823,3291.4,3291.0,0.60120788]
[1736534803854,0.55,3291.3,3291.0,0.60120788]
[1736534804024,3.58832,3291.3,3291.0,0.60120788]
[1736534805765,3.58815,3291.5,3291.0,0.60120788]
[1736534806323,3.03815,3291.5,3291.0,0.60120788]
[1736534806527,3.03797,3291.7,3291.1,0.8159]
[1736534806765,3.03805,3291.6,3291.1,0.8159]
[1736534807147,3.55,3291.7,3291.1,0.8159]
[1736534807469,3.55,3291.7,3291.1,0.84628177]
[1736534807643,6.58798,3291.7,3291.1,0.8159]
[1736534807839,3.55,3291.7,3291.1,0.8159]
[1736534808042,4.31758106,3291.7,3291.0,0.60120788]
[1736534808245,3.03828,3291.4,3291.0,0.60120788]
[1736534808444,6.37089797,3291.7,3291.0,0.60120788]
[1736534808643,0.55,3291.0,3290.5,0.8159]
[1736534809132,0.55,3291.0,3289.8,3.03966]
[1736534809133,7.49670858,3290.8,3290.2,0.7714]
[1736534809330,7.49670858,3290.8,3289.9,0.7714]
[1736534809331,4.3119,3290.7,3289.9,0.7714]
[1736534809565,4.3119,3290.7,3290.3,0.60511481]
[1736534810135,3.03914,3290.5,3290.3,0.60511481]
[1736534811345,6.03888,3290.7,3290.3,0.60511481]
[1736534811656,3.03913,3290.5,3290.3,0.60511481]
[1736534811841,3.03914,3290.4,3290.3,0.60511481]
[1736534812372,3.0,3290.7,3290.0,0.01686201]
[1736534812373,3.03898,3290.6,3290.0,0.01686201]
[1736534812576,7.16523061,3290.1,3290.0,0.01686201]
[1736534812869,10.16523061,3290.1,3290.0,0.01686201]
[1736534813170,10.18023061,3290.1,3290.0,0.01686201]
[1736534814168,10.16523061,3290.1,3290.0,0.01686201]
[1736534817038,7.16523061,3290.1,3290.0,0.01686201]
[1736534818094,11.25925347,3290.1,3290.0,0.01686201]
[1736534818481,11.24425347,3290.1,3290.0,0.01686201]
[1736534818774,10.16523061,3290.1,3290.0,0.01686201]
[1736534824383,10.16523061,3290.1,3289.5,0.62053623]
[1736534824384,4.12581061,3290.1,3289.6,0.03039925]
[1736534824547,4.12581061,3290.1,3289.7,0.7702]
[1736534824747,7.16529061,3290.1,3289.7,0.7702]
[1736534825293,4.12581061,3290.1,3289.9,0.8181]
[1736534825464,4.12581061,3290.1,3290.0,0.41491548]
[1736534825664,4.12581061,3290.1,3289.9,0.8181]
[1736534826882,4.12581061,3290.1,3290.0,0.61149884]
[1736534828246,7.16523061,3290.1,3290.0,0.61149884]
[1736534828446,4.12581061,3290.1,3289.9,0.8181]
[1736534828684,4.12581061,3290.1,3289.6,0.261]
[1736534828685,3.0397,3289.8,3289.6,0.261]
[1736534829863,3.03961,3289.9,3289.7,0.59734829]
[1736534832392,3.03992,3289.6,3289.1,0.7851]
[1736534832687,3.03998,3289.5,3289.1,0.7851]
[1736534832865,3.03998,3289.5,3289.4,0.62315324]
[1736534833462,4.12581061,3289.7,3289.4,0.62315324]
[1736534833676,7.16564061,3289.7,3289.4,0.62315324]
[1736534833864,4.12581061,3289.7,3289.4,0.62315324]
[1736534834356,3.03997,3289.5,3289.3,0.60909441]
[1736534834575,3.04006,3289.4,3289.3,0.60909441]
[1736534838096,3.04024,3289.3,3288.8,0.8012]
[1736534838737,3.04035,3289.1,3288.3,0.8173]
[1736534838940,3.04035,3289.1,3288.9,0.60383583]
[1736534841010,3.04043,3289.0,3288.4,0.385844]
[1736534841183,3.0,3289.0,3288.3,0.8173]
[1736534841385,4.12581061,3288.9,3288.0,0.7845]
[1736534841572,3.0408,3288.6,3288.0,0.7845]
[1736534841779,3.04092,3288.5,3288.0,1.09847792]
[1736534841988,3.04082,3288.6,3288.4,0.60243567]
[1736534842188,3.0409,3288.5,3288.4,0.60243567]
[1736534842529,3.62919797,3288.5,3287.8,2.09427917]
[1736534842729,7.16713061,3288.1,3287.8,2.09427917]
[1736534843194,4.12581061,3288.1,3287.8,2.09427917]
[1736534843395,3.04145,3287.9,3287.8,2.09427917]
[1736534843626,3.81935,3287.9,3287.8,2.09427917]
[1736534843927,3.04177,3287.6,3287.4,0.5950688]
[1736534846029,4.12581061,3287.8,3287.4,0.5950688]
[1736534847103,4.12581061,3287.8,3287.6,0.8093]
[1736534847324,4.12581061,3287.8,3287.7,3.85094]
[1736534847637,3.04074,3288.7,3287.7,1.194394]
[1736534847793,3.04074,3288.7,3287.8,0.261]
[1736534849658,6.04054,3288.9,3287.9,0.03040986]
[1736534849839,6.04054,3288.9,3288.0,0.806]
[1736534850444,3.04063,3288.8,3288.0,0.806]
[1736534850647,3.0408,3288.6,3288.5,0.60779721]
[1736534850848,3.04097,3288.5,3288.0,0.806]
[1736534851444,4.12581061,3288.8,3288.0,0.806]
[1736534851663,4.12581061,3288.8,3288.1,3.64755678]
[1736534851838,4.12581061,3288.8,3288.4,3.04091]
[1736534852039,7.16589061,3289.4,3288.6,0.8141]
[1736534852281,3.04029,3289.2,3288.7,0.38853959]
[1736534852439,3.04053,3288.9,3288.6,0.8141]
[1736534852638,0.8147,3289.2,3288.6,0.8141]
[1736534852868,3.04064,3288.8,3288.6,0.62255481]
[1736534853182,3.04064,3288.8,3288.0,0.8141]
[1736534853183,3.04082,3288.6,3288.0,0.8141]
[1736534853394,3.04082,3288.6,3288.1,0.261]
[1736534853582,3.04066,3288.8,3288.5,0.61634388]
[1736534853953,3.0,3288.9,3288.5,0.61634388]
[1736534854358,3.04054,3288.9,3288.5,0.61634388]
[1736534854580,7.16635061,3288.9,3288.5,0.61634388]
[1736534855366,4.12581061,3288.9,3288.6,0.7805]
[1736534855691,4.12581061,3288.9,3288.5,0.61634388]
[1736534855692,3.0408,3288.6,3288.5,0.61634388]
[1736534856565,2.82839797,3288.7,3288.0,0.7805]
[1736534856773,3.04093,3288.5,3288.4,0.62091074]
[1736534857293,0.015,3288.3,3288.1,0.59454602]
[1736534857593,3.0,3288.3,3288.1,0.59454602]
[1736534857753,4.12581061,3288.4,3288.1,0.59454602]
[1736534857953,4.12581061,3288.4,3288.2,0.7805]
[1736534858957,3.04064,3288.8,3288.2,0.7805]
[1736534861183,8.38,3288.9,3288.2,0.7805]
[1736534861701,8.38,3288.9,3288.3,0.03040944]
[1736534862199,8.38,3288.9,3288.2,0.7805]
[1736534862562,11.42059,3288.9,3288.2,0.7805]
[1736534862765,3.04064,3288.8,3288.2,1.2221376]
[1736534863069,3.04064,3288.8,3288.2,0.7805]
[1736534863701,3.04086,3288.6,3288.3,0.59771304]
[1736534863908,3.04096,3288.5,3288.3,0.59771304]
[1736534864201,0.8415,3288.8,3288.0,0.7526]
[1736534864202,3.04099,3288.4,3288.0,0.7526]